fUST/lending_fUST_20250828
["ID","MTS","AMOUNT","RATE_DAILY","PERIOD"]
[381803429,1756354248262,-495.54,0.00020675,2]
[381803430,1756354248271,-480.0,0.00020675,2]
[381803431,1756354248281,-1061.92,0.00020675,2]
[381803432,1756354248291,-915.09,0.00020675,2]
[381803433,1756354248301,-480.0,0.00020675,2]
[381803434,1756354248310,-682.23,0.00020675,2]
[381803435,1756354248319,-480.0,0.00020675,2]
[381803436,1756354248328,-480.0,0.00020675,2]
[381803437,1756354248338,-3797.27,0.00020675,2]
[381803438,1756354248347,-480.0,0.00020675,2]
[381803439,1756354248357,-482.52808145,0.00020675,2]
[381803440,1756354248366,-480.0,0.00020675,2]
[381803441,1756354248375,-480.0,0.00020675,2]
[381803442,1756354248385,-775.36,0.00020675,2]
[381803443,1756354248394,-557.42,0.00020675,2]
[381803444,1756354248403,-481.1424729,0.00020675,2]
[381803445,1756354248412,-875.49,0.00020675,2]
[381803446,1756354248422,-580.66,0.00020675,2]
[381803447,1756354248431,-722.55,0.00020675,2]
[381803448,1756354248440,-480.0,0.00020675,2]
[381803449,1756354248449,-601.4449442,0.00020675,2]
[381803450,1756354248459,-565.32,0.00020675,2]
[381803451,1756354248468,-480.0,0.00020675,2]
[381803452,1756354248478,-923.3,0.00020675,2]
[381803453,1756354248487,-480.0,0.00020675,2]
[381803454,1756354248497,-480.0,0.00020675,2]
[381803455,1756354248507,-1355.11,0.00020675,2]
[381803456,1756354248516,-740.55,0.00020675,2]
[381803457,1756354248525,-946.04,0.00020675,2]
[381803458,1756354248535,-509.1,0.00020675,2]
[381803459,1756354248544,-1204.2,0.00020675,2]
[381803460,1756354248554,-623.1,0.00020675,2]
[381803461,1756354248564,-480.0,0.00020675,2]
[381803462,1756354248573,-480.0,0.00020675,2]
[381803463,1756354248582,-480.0,0.00020675,2]
[381803464,1756354248591,-480.0,0.00020675,2]
[381803465,1756354248600,-480.0,0.00020675,2]
[381803466,1756354248609,-480.0,0.00020675,2]
[381803467,1756354248619,-515.48,0.00020675,2]
[381803468,1756354248628,-603.7,0.00020675,2]
[381803469,1756354248637,-480.0,0.00020675,2]
[381803470,1756354248646,-480.0,0.00020675,2]
[381803471,1756354248655,-480.0,0.00020675,2]
[381803472,1756354248665,-631.8,0.00020675,2]
[381803473,1756354248675,-720.34,0.00020675,2]
[381803474,1756354248688,-480.0,0.00020675,2]
[381803475,1756354248701,-506.25,0.00020675,2]
[381803476,1756354248711,-480.0,0.00020675,2]
[381803477,1756354248721,-480.0,0.00020675,2]
[381803478,1756354248733,-480.0,0.00020675,2]
[381803479,1756354248746,-480.0,0.00020675,2]
[381803480,1756354248755,-618.0,0.00020675,2]
[381803481,1756354248765,-3548.39,0.00020675,2]
[381803482,1756354248775,-913.31,0.00020675,2]
[381803483,1756354248784,-480.0,0.00020675,2]
[381803484,1756354248794,-480.0,0.00020675,2]
[381803485,1756354248803,-480.0,0.00020675,2]
[381803486,1756354248815,-480.0,0.00020675,2]
[381803487,1756354248825,-661.84,0.00020675,2]
[381803488,1756354248834,-480.0,0.00020675,2]
[381803489,1756354248843,-519.92,0.00020675,2]
[381803490,1756354248853,-480.0,0.00020675,2]
[381803491,1756354248862,-480.0,0.00020675,2]
[381803492,1756354248872,-524.7,0.00020675,2]
[381803493,1756354248881,-4673.47,0.00020675,2]
[381803494,1756354248890,-480.0,0.00020675,2]
[381803495,1756354248899,-700.9,0.00020675,2]
[381803496,1756354248908,-678.06,0.00020675,2]
[381803497,1756354248918,-480.0,0.00020675,2]
[381803498,1756354248926,-1196.24,0.00020675,2]
[381803499,1756354248936,-2424.91,0.00020675,2]
[381803500,1756354248945,-2498.39,0.00020675,2]
[381803501,1756354248955,-480.0,0.00020675,2]
[381803502,1756354248964,-480.0,0.00020675,2]
[381803503,1756354248974,-1156.79,0.00020675,2]
[381803504,1756354248984,-589.19,0.00020675,2]
[381803505,1756354248994,-592.85,0.00020675,2]
[381803506,1756354249005,-515.78,0.00020675,2]
[381803507,1756354249015,-480.0,0.00020675,2]
[381803508,1756354249024,-480.0,0.00020675,2]
[381803509,1756354249035,-686.34,0.00020675,2]
[381803510,1756354249045,-480.0,0.00020675,2]
[381803511,1756354249055,-480.0,0.00020675,2]
[381803512,1756354249065,-4797.46,0.00020675,2]
[381803513,1756354249075,-884.73,0.00020675,2]
[381803514,1756354249085,-480.0,0.00020675,2]
[381803515,1756354249094,-641.3,0.00020675,2]
[381803516,1756354249104,-606.43,0.00020675,2]
[381803517,1756354249113,-480.0,0.00020675,2]
[381803518,1756354249123,-943.12,0.00020675,2]
[381803519,1756354249132,-1638.1,0.00020675,2]
[381803520,1756354249142,-480.0,0.00020675,2]
[381803521,1756354249152,-504.91,0.00020675,2]
[381803522,1756354249161,-480.0,0.00020675,2]
[381803523,1756354249171,-480.0,0.00020675,2]
[381803524,1756354249180,-614.44,0.00020675,2]
[381803525,1756354249190,-480.0,0.00020675,2]
[381803526,1756354249200,-582.05,0.00020675,2]
[381803527,1756354249209,-3770.46067454,0.00020676,2]
[381803528,1756354249219,-154.23729248,0.00020683,2]
[381803529,1756354249228,-480.0,0.00020684,2]
[381803530,1756354249237,-835.78,0.00020684,2]
[381803531,1756354249247,-480.0,0.00020684,2]
[381803532,1756354249256,-582.23,0.00020684,2]
[381803533,1756354249265,-480.0,0.00020684,2]
[381803534,1756354249275,-480.0,0.00020684,2]
[381803535,1756354249285,-480.0,0.00020684,2]
[381803536,1756354249295,-480.0,0.00020684,2]
[381803537,1756354249304,-480.0,0.00020684,2]
[381803538,1756354249313,-480.0,0.00020684,2]
[381803539,1756354249323,-480.0,0.00020684,2]
[381803540,1756354249332,-480.0,0.00020684,2]
[381803541,1756354249342,-480.0,0.00020684,2]
[381803542,1756354249351,-480.0,0.00020684,2]
[381803543,1756354249360,-480.0,0.00020684,2]
[381803544,1756354249370,-480.0,0.00020684,2]
[381803545,1756354249379,-480.0,0.00020684,2]
[381803546,1756354249388,-480.0,0.00020684,2]
[381803547,1756354249398,-524.81,0.00020684,2]
[381803548,1756354249407,-480.0,0.00020684,2]
[381803549,1756354249416,-480.0,0.00020684,2]
[381803550,1756354249425,-480.0,0.00020684,2]
[381803551,1756354249434,-480.0,0.00020684,2]
[381803552,1756354249443,-480.0,0.00020684,2]
[381803553,1756354249452,-485.13,0.00020684,2]
[381803554,1756354249461,-480.0,0.00020684,2]
[381803555,1756354249470,-480.0,0.00020684,2]
[381803556,1756354249480,-480.0,0.00020684,2]
[381803557,1756354249490,-351.70164035,0.00020684,2]
[381803558,1756354249499,-481.81170712,0.00020684,2]
[381803559,1756354249509,-593.59,0.00020684,2]
[381803560,1756354249519,-480.0,0.00020684,2]
[381803561,1756354249528,-666.01,0.00020684,2]
[381803562,1756354249537,-480.0,0.00020684,2]
[381803563,1756354249546,-480.0,0.00020684,2]
[381803564,1756354249555,-480.0,0.00020684,2]
[381803565,1756354249565,-480.0,0.00020684,2]
[381803566,1756354249574,-493.4,0.00020684,2]
[381803567,1756354249583,-480.0,0.00020684,2]
[381803568,1756354249592,-875.82,0.00020684,2]
[381803569,1756354249601,-480.0,0.00020684,2]
[381803570,1756354249611,-500.0,0.00020684,2]
[381803571,1756354249620,-480.0,0.00020684,2]
[381803572,1756354249630,-480.0,0.00020684,2]
[381803573,1756354249640,-480.0,0.00020684,2]
[381803574,1756354249649,-834.44,0.00020684,2]
[381803575,1756354249658,-480.0,0.00020684,2]
[381803576,1756354249667,-480.0,0.00020684,2]
[381803577,1756354249676,-480.0,0.00020684,2]
[381803578,1756354249685,-480.0,0.00020684,2]
[381803579,1756354249695,-480.0,0.00020684,2]
[381803580,1756354249704,-501.08,0.00020684,2]
[381803581,1756354249713,-480.0,0.00020684,2]
[381803582,1756354249722,-480.0,0.00020684,2]
[381803583,1756354249732,-480.0,0.00020684,2]
[381803584,1756354249743,-480.0,0.00020684,2]
[381803585,1756354249753,-524.16,0.00020684,2]
[381803586,1756354249762,-480.0,0.00020684,2]
[381803587,1756354249772,-507.19,0.00020684,2]
[381803588,1756354249781,-495.86499493,0.00020684,2]
[381803589,1756354249791,-480.0,0.00020684,2]
[381803590,1756354249800,-480.0,0.00020684,2]
[381803591,1756354249809,-480.0,0.00020684,2]
[381803592,1756354249819,-480.0,0.00020684,2]
[381803593,1756354249828,-629.11,0.00020684,2]
[381803594,1756354249837,-480.0,0.00020684,2]
[381803595,1756354249846,-480.0,0.00020684,2]
[381803596,1756354249855,-480.0,0.00020684,2]
[381803597,1756354249865,-480.0,0.00020684,2]
[381803598,1756354249874,-480.0,0.00020684,2]
[381803599,1756354249883,-480.0,0.00020684,2]
[381803600,1756354249893,-480.0,0.00020684,2]
[381803601,1756354249903,-480.0,0.00020684,2]
[381803602,1756354249912,-480.0,0.00020684,2]
[381803603,1756354249921,-480.0,0.00020684,2]
[381803604,1756354249930,-483.72,0.00020684,2]
[381803605,1756354249939,-536.83,0.00020684,2]
[381803606,1756354249948,-616.76,0.00020684,2]
[381803607,1756354249957,-480.0,0.00020684,2]
[381803608,1756354249966,-480.0,0.00020684,2]
[381803609,1756354249975,-480.0,0.00020684,2]
[381803610,1756354249984,-530.17,0.00020684,2]
[381803611,1756354249994,-480.0,0.00020684,2]
[381803612,1756354250003,-480.0,0.00020684,2]
[381803613,1756354250012,-1022.17,0.00020684,2]
[381803614,1756354250022,-480.0,0.00020684,2]
[381803615,1756354250031,-480.0,0.00020684,2]
[381803616,1756354250041,-480.0,0.00020684,2]
[381803617,1756354250050,-480.0,0.00020684,2]
[381803618,1756354250059,-619.91,0.00020684,2]
[381803619,1756354250068,-480.0,0.00020684,2]
[381803620,1756354250077,-480.0,0.00020684,2]
[381803621,1756354250087,-480.0,0.00020684,2]
[381803622,1756354250096,-481.43382804,0.00020684,2]
[381803623,1756354250105,-530.29042261,0.00020684,2]
[381803624,1756354250115,-480.0,0.00020684,2]
[381803625,1756354250123,-488.49,0.00020684,2]
[381803626,1756354250132,-480.0,0.00020684,2]
[381803627,1756354250142,-480.0,0.00020684,2]
[381803628,1756354250151,-589.8,0.00020684,2]
[381803629,1756354250160,-603.84,0.00020684,2]
[381803630,1756354250170,-533.79,0.00020684,2]
[381803631,1756354250180,-480.0,0.00020684,2]
[381803632,1756354250189,-480.0,0.00020684,2]
[381803633,1756354250198,-480.0,0.00020684,2]
[381803634,1756354250207,-480.0,0.00020684,2]
[381803635,1756354250216,-480.0,0.00020684,2]
[381803636,1756354250225,-480.0,0.00020684,2]
[381803637,1756354250236,-480.0,0.00020684,2]
[381803638,1756354250245,-546.07,0.00020684,2]
[381803639,1756354250254,-504.58,0.00020684,2]
[381803640,1756354250263,-480.0,0.00020684,2]
[381803641,1756354250272,-509.78,0.00020684,2]
[381803642,1756354250282,-480.0,0.00020684,2]
[381803643,1756354250292,-480.0,0.00020684,2]
[381803644,1756354250301,-483.0,0.00020684,2]
[381803645,1756354250310,-480.0,0.00020684,2]
[381803646,1756354250319,-607.41,0.00020684,2]
[381803647,1756354250329,-480.0,0.00020684,2]
[381803648,1756354250338,-480.0,0.00020684,2]
[381803649,1756354250348,-480.0,0.00020684,2]
[381803650,1756354250357,-480.0,0.00020684,2]
[381803651,1756354250367,-480.0,0.00020684,2]
[381803652,1756354250376,-480.0,0.00020684,2]
[381803653,1756354250385,-812.18,0.00020684,2]
[381803654,1756354250395,-480.0,0.00020684,2]
[381803655,1756354250404,-480.0,0.00020684,2]
[381803656,1756354250414,-754.57,0.00020684,2]
[381803657,1756354250423,-3744.60202295,0.00020684,2]
[381803663,1756354387048,400.09136981,0.000199,2]
[381803664,1756354402558,602.28349289,0.00020101,2]
[381803666,1756354530416,253.3293098,0.00019204,2]
[381803668,1756354562381,386.75499071,0.000199,2]
[381803669,1756354631944,2862.45315342,0.00020102,2]
[381803670,1756354654328,197.9338944,0.00019863,2]
[381803674,1756354699729,395.5305587,0.00019387,2]
[381803675,1756354718779,157.96098679,0.0002011,2]
[381803676,1756354736158,373.86315787,0.000199,2]
[381803698,1756354776622,666.0,0.000192,2]
[381803701,1756354897552,2000.0,0.0002729,120]
[381803703,1756354912271,445.78995724,0.000201,2]
[381803704,1756354912295,2058.85655202,0.000201,2]
[381803706,1756354986035,4575.1852131,0.00019196,2]
[381803707,1756354988117,1381.06999163,0.00019455,7]
[381803714,1756355121882,193.83489482,0.00020097,2]
[381803718,1756355158523,1791.06334843,0.00020105,2]
[381803719,1756355158545,1603.32712391,0.00020105,2]
[381803720,1756355179353,8396.68287609,0.00020105,2]
[381803721,1756355179376,4829.78491927,0.00020105,2]
[381803722,1756355192524,2191.56569562,0.00020091,2]
[381803723,1756355207147,-250.54063607,0.00020189,2]
[381803726,1756355320301,387.50430058,0.00030575,120]
[381803730,1756355412958,2978.65938511,0.0002,2]
[381803731,1756355412987,10000.01,0.0002,2]
[381803732,1756355413017,3696.93428975,0.0002,2]
[381803783,1756355432236,-300.0,0.00020187,2]
[381803785,1756355432245,-235.53543918,0.00020187,2]
[381803847,1756355434564,6303.07571025,0.00020102,2]
[381803848,1756355434586,2514.56948667,0.00020102,2]
[381803875,1756355438076,-634.43714163,0.00020186,2]
[381803877,1756355438086,-502.00083239,0.00020186,2]
[381803879,1756355438095,-500.0,0.00020186,2]
[381803880,1756355438105,-500.0,0.00020186,2]
[381803881,1756355438116,-445.44149946,0.00020186,2]
[381803882,1756355438126,-500.0,0.00020186,2]
[381803883,1756355438136,-500.0,0.00020186,2]
[381803884,1756355438146,-500.0,0.00020186,2]
[381803886,1756355438155,-500.0,0.00020186,2]
[381803888,1756355438166,-500.0,0.00020186,2]
[381803890,1756355438175,-500.0,0.00020186,2]
[381803892,1756355438185,-420.52221043,0.00020186,2]
[381803894,1756355438195,-226.93595797,0.00020186,2]
[381803896,1756355438205,-500.0,0.00020186,2]
[381803898,1756355438214,-500.0,0.00020186,2]
[381803900,1756355438223,-500.0,0.00020186,2]
[381803902,1756355438232,-500.0,0.00020186,2]
[381803904,1756355438241,-529.40259252,0.00020186,2]
[381803906,1756355438250,-500.0,0.00020186,2]
[381803909,1756355438260,-500.0,0.00020186,2]
[381803911,1756355438269,-500.0,0.00020186,2]
[381803913,1756355438279,-500.0,0.00020186,2]
[381803915,1756355438288,-500.0,0.00020186,2]
[381803916,1756355438297,-500.0,0.00020186,2]
[381803918,1756355438306,-500.0,0.00020186,2]
[381803921,1756355438316,-500.0,0.00020186,2]
[381803923,1756355438326,-500.0,0.00020186,2]
[381803925,1756355438335,-64.46456082,0.00020187,2]
[381803927,1756355438345,-300.0,0.00020187,2]
[381803929,1756355438354,-300.0,0.00020187,2]
[381803931,1756355438364,-300.0,0.00020187,2]
[381803933,1756355438373,-1200.0,0.00020187,2]
[381803935,1756355438381,-1200.0,0.00020188,2]
[381803937,1756355438391,-368.08968695,0.00020188,2]
[381803939,1756355438400,-33517.58963268,0.00020189,2]
[381803941,1756355438409,-293.26774857,0.0002019,2]
[381803943,1756355438419,-769.65,0.0002019,2]
[381803945,1756355438428,-1221.24,0.0002019,2]
[381803947,1756355438437,-891.77,0.0002019,2]
[381803949,1756355438446,-757.59,0.0002019,2]
[381803951,1756355438456,-824.82,0.0002019,2]
[381803953,1756355438465,-480.0,0.0002019,2]
[381803955,1756355438474,-376.28692503,0.0002019,2]
[381803957,1756355438487,-103.71307497,0.0002019,2]
[381803959,1756355438497,-2384.82,0.0002019,2]
[381803961,1756355438506,-480.0,0.0002019,2]
[381803963,1756355438515,-480.0,0.0002019,2]
[381803965,1756355438525,-480.0,0.0002019,2]
[381803967,1756355438534,-480.0,0.0002019,2]
[381803969,1756355438543,-2252.51,0.0002019,2]
[381803971,1756355438553,-480.0,0.0002019,2]
[381803973,1756355438562,-140.72763982,0.0002019,2]
[381803976,1756355438581,-339.27236018,0.0002019,2]
[381803978,1756355438590,-480.0,0.0002019,2]
[381803980,1756355438599,-12710.44222334,0.00020192,3]
[381803982,1756355438608,-216.18903889,0.00020192,3]
[381803984,1756355438617,-417.15472785,0.00020192,3]
[381803986,1756355438627,-236.04,0.00020192,3]
[381803988,1756355438636,-6586.59,0.00020192,3]
[381803990,1756355438645,-3293.3,0.00020192,3]
[381803992,1756355438654,-1646.65,0.00020192,3]
[381803994,1756355438663,-823.32,0.00020192,3]
[381803996,1756355438672,-411.66,0.00020192,3]
[381803998,1756355438682,-205.83,0.00020192,3]
[381804000,1756355438692,-617.53,0.00020192,3]
[381804002,1756355438701,-480.0,0.00020197,2]
[381804004,1756355438710,-3670.69,0.00020197,2]
[381804006,1756355438720,-480.0,0.00020197,2]
[381804009,1756355438730,-1026.53,0.00020197,2]
[381804011,1756355438739,-662.34,0.00020197,2]
[381804013,1756355438748,-502.95685249,0.000202,2]
[381804015,1756355438758,-480.0,0.000202,2]
[381804017,1756355438767,-480.0,0.000202,2]
[381804019,1756355438776,-482.73,0.000202,2]
[381804021,1756355438786,-642.19,0.000202,2]
[381804023,1756355438796,-480.0,0.000202,2]
[381804025,1756355438805,-151.0,0.000202,4]
[381804027,1756355438815,-480.0,0.000202,2]
[381804029,1756355438824,-480.0,0.000202,2]
[381804031,1756355438833,-480.0,0.000202,2]
[381804033,1756355438842,-670.64,0.000202,2]
[381804035,1756355438851,-480.0,0.000202,2]
[381804037,1756355438860,-966.7,0.000202,2]
[381804039,1756355438869,-1454.42,0.000202,2]
[381804041,1756355438878,-809.82,0.000202,2]
[381804043,1756355438887,-480.0,0.000202,2]
[381804045,1756355438896,-516.3,0.000202,2]
[381804047,1756355438905,-480.0,0.000202,2]
[381804049,1756355438915,-480.0,0.000202,2]
[381804051,1756355438924,-480.0,0.000202,2]
[381804053,1756355438933,-553.54,0.000202,2]
[381804055,1756355438942,-480.0,0.000202,2]
[381804057,1756355438952,-490.64,0.000202,2]
[381804059,1756355438961,-480.0,0.000202,2]
[381804061,1756355438970,-500.0,0.000202,2]
[381804063,1756355438981,-651.03,0.000202,2]
[381804065,1756355438990,-480.0,0.000202,2]
[381804067,1756355439000,-656.16,0.000202,2]
[381804069,1756355439009,-164.59595102,0.000202,2]
[381804071,1756355439018,-640.86,0.000202,2]
[381804073,1756355439029,-480.0,0.000202,2]
[381804075,1756355439038,-480.0,0.000202,2]
[381804077,1756355439047,-480.0,0.000202,2]
[381804079,1756355439056,-1108.13,0.000202,2]
[381804081,1756355439066,-480.0,0.000202,2]
[381804083,1756355439075,-58.40069787,0.000202,2]
[381804085,1756355439088,-683.83930213,0.000202,2]
[381804087,1756355439097,-480.0,0.000202,2]
[381804089,1756355439106,-1067.88,0.000202,2]
[381804091,1756355439118,-299.86494524,0.000202,2]
[381804093,1756355439129,-189.86505476,0.000202,2]
[381804094,1756355439139,-201.11395644,0.000202,2]
[381804147,1756355440160,-480.0,0.0002019,2]
[381804149,1756355440170,-39.48394604,0.0002019,2]
[381804316,1756355443180,-440.51605396,0.0002019,2]
[381804317,1756355443191,-480.0,0.0002019,2]
[381804318,1756355443200,-312.79604356,0.000202,2]
[381804319,1756355443209,-480.0,0.000202,2]
[381804320,1756355443218,-1585.69,0.000202,2]
[381804321,1756355443228,-480.0,0.000202,2]
[381804322,1756355443237,-480.0,0.000202,2]
[381804323,1756355443247,-952.82,0.000202,2]
[381804324,1756355443256,-480.0,0.000202,2]
[381804325,1756355443265,-62.99889557,0.000202,2]
[381804354,1756355457164,7485.44051333,0.00020102,2]
[381804355,1756355457187,10000.01,0.00020102,2]
[381804356,1756355457211,10000.01,0.00020102,2]
[381804357,1756355457234,10000.01,0.00020102,2]
[381804358,1756355457256,10000.01,0.00020102,2]
[381804359,1756355457278,10000.01,0.00020102,2]
[381804360,1756355457301,10000.01,0.00020102,2]
[381804361,1756355457323,10000.01,0.00020102,2]
[381804362,1756355457345,10000.01,0.00020102,2]
[381804363,1756355457368,10000.01,0.00020102,2]
[381804364,1756355457641,246946.69975804,0.00020102,2]
[381804365,1756355457671,25567.76972863,0.00020102,2]
[381804366,1756355472962,1917.61998365,0.000201,2]
[381804367,1756355498781,2715.51237788,0.00020105,2]
[381804369,1756355618513,5366.87763847,0.00020092,2]
[381804370,1756355618536,10000.01,0.00020092,2]
[381804371,1756355618559,10000.01,0.00020092,2]
[381804372,1756355618582,10000.01,0.00020092,2]
[381804373,1756355618605,10000.01,0.00020092,2]
[381804374,1756355618630,10000.01,0.00020092,2]
[381804375,1756355618652,10000.01,0.00020092,2]
[381804376,1756355618675,10000.01,0.00020092,2]
[381804377,1756355618698,10000.01,0.00020092,2]
[381804378,1756355618720,10000.01,0.00020092,2]
[381804379,1756355618748,274633.03236153,0.00020092,2]
[381804380,1756355666820,199.6988805,0.00020088,2]
[381804381,1756355667686,199.6988805,0.00020089,2]
[381804382,1756355668029,199.6988805,0.00020089,2]
[381804383,1756355668383,157.9026632,0.00019197,2]
[381804384,1756355689756,9054.65014886,0.00020102,2]
[381804386,1756355748229,188.36054644,0.00020089,2]
[381804387,1756355748256,1757.45644054,0.00020089,2]
[381804388,1756355780083,8242.55355946,0.000201,2]
[381804389,1756355780108,10000.01,0.000201,2]
[381804390,1756355780132,10000.01,0.000201,2]
[381804391,1756355780157,10000.01,0.000201,2]
[381804392,1756355780181,10000.01,0.000201,2]
[381804393,1756355780204,10000.01,0.000201,2]
[381804394,1756355780227,10000.01,0.000201,2]
[381804395,1756355780253,10000.01,0.000201,2]
[381804396,1756355780275,10000.01,0.000201,2]
[381804397,1756355780299,10000.01,0.000201,2]
[381804398,1756355780328,271757.35644054,0.000201,2]
[381804399,1756355839181,5675.47581341,0.000201,2]
[381804400,1756355876481,2387.03349448,0.00020102,2]
[381804401,1756355879372,1937.50069211,0.00020102,2]
[381804402,1756355879393,582.18413609,0.00020102,2]
[381804403,1756355880747,1889.76362115,0.00020102,2]
[381804404,1756355881124,187.13,0.00015984,2]
[381804405,1756355881430,187.11,0.00015984,2]
[381804406,1756355882104,1417.32271587,0.00020102,2]
[381804407,1756355883176,1062.9920369,0.00020102,2]
[381804408,1756355884347,797.24402767,0.00020102,2]
[381804409,1756355885601,597.93302076,0.00020102,2]
[381804410,1756355886588,448.44976557,0.00020102,2]
[381804411,1756355887474,336.33732417,0.00020102,2]
[381804412,1756355888421,252.25299313,0.00020102,2]
[381804413,1756355890088,189.18974485,0.00020102,2]
[381804414,1756355891071,151.0,0.00020102,2]
[381804415,1756355944976,1901.10061384,0.000201,2]
[381804416,1756355945000,10000.01,0.000201,2]
[381804417,1756355945024,7051.33793228,0.000201,2]
[381804418,1756355948826,2948.67206772,0.00020085,2]
[381804419,1756355948848,10000.01,0.00020085,2]
[381804420,1756355948870,10000.01,0.00020085,2]
[381804421,1756355948892,10000.01,0.00020085,2]
[381804422,1756355948914,10000.01,0.00020085,2]
[381804423,1756355948936,10000.01,0.00020085,2]
[381804424,1756355948957,10000.01,0.00020085,2]
[381804425,1756355948985,307051.26793228,0.00020085,2]
[381804426,1756355998491,30000.03,0.00019185,2]
[381804427,1756356029748,1702.58986359,0.00020079,2]
[381804430,1756356106770,370000.0,0.00020085,2]
[381804432,1756356148846,354.28828333,0.00020017,2]
[381804433,1756356161183,787.39157896,0.00020019,2]
[381804435,1756356177834,151.0,0.00020102,2]
[381804436,1756356178769,265.56923454,0.00020102,2]
[381804437,1756356181321,6780.19048853,0.0002009,2]
[381804438,1756356197326,166.0,8.4e-07,2]
[381804439,1756356200248,12634.96569742,0.0002009,2]
[381804440,1756356247415,370000.0,0.00020085,2]
[381804442,1756356278573,280.8961811,0.00020016,2]
[381804443,1756356283528,280.8961811,0.00020052,2]
[381804444,1756356288827,280.8961811,0.00020088,2]
[381804445,1756356295537,8505.8212587,0.00019144,2]
[381804446,1756356308965,1769.65718032,0.00020015,2]
[381804448,1756356388723,13305.78741251,0.00020013,2]
[381804449,1756356391664,1652.8193825,0.00027397,120]
[381804450,1756356403691,303413.85026017,0.00020017,2]
[381804451,1756356404811,-230.25978769,0.00020017,2]
[381804452,1756356408716,-173.97908705,0.00020017,2]
[381804453,1756356412134,-498.149449,0.00020017,2]
[381804454,1756356416944,-301.7115264,0.00020017,2]
[381804455,1756356421016,-171.84779506,0.00020017,2]
[381804456,1756356423398,-300.0,0.00020016,2]
[381804457,1756356423426,-27.70995805,0.00020017,2]
[381804458,1756356429068,-168.53752178,0.00020017,2]
[381804459,1756356431180,-219.30131598,0.00020017,2]
[381804460,1756356436811,-303.80212423,0.00020017,2]
[381804461,1756356438732,-186.03645096,0.00020017,2]
[381804462,1756356440872,-168.048268,0.00020017,2]
[381804463,1756356443994,-299.63553772,0.00020017,2]
[381804464,1756356445790,-374.65611712,0.00020017,2]
[381804465,1756356448420,-296.78545239,0.00020017,2]
[381804466,1756356453276,-202.28306803,0.00020017,2]
[381804467,1756356455655,-243.99014949,0.00020017,2]
[381804468,1756356457410,-165.0307003,0.00020017,2]
[381804469,1756356460062,-311.39885059,0.00020017,2]
[381804470,1756356463420,-178.02437,0.00020017,2]
[381804471,1756356465105,-242.13065232,0.00020017,2]
[381804472,1756356470701,-268.69617012,0.00020017,2]
[381804473,1756356472443,-180.135331,0.00020017,2]
[381804474,1756356476296,-357.21891305,0.00020017,2]
[381804475,1756356479256,-162.85703326,0.00020017,2]
[381804476,1756356483600,-300.0,0.00020016,2]
[381804477,1756356483623,-61.40726455,0.00020017,2]
[381804478,1756356488810,-289.42879766,0.00020017,2]